[Event "Titled Tuesday Blitz July 27 2021"]
[White "Florescu, Codrut-Constantin"]
[Black "Timmermans, Mark"]
[WhiteFideId "1202200"]
[BlackFideId "1026399"]
[WhiteElo "2243"]
[BlackElo "2460"]
[Result "1/2-1/2"]
[Round "04"]
[TimeControl "180+1"]
[Date "2021.07.27"]
[WhiteClock "0:00:06"]
[BlackClock "0:00:16"]

1. d4 {[%clk 0:03:00]}  Nf6 {[%clk 0:02:59]} 2. c4 {[%clk 0:03:01]}  e6 {[%clk 0:03:00]} 3. Nf3 {[%clk 0:03:01]}  d5 {[%clk 0:03:00]} 4. Bg5 {[%clk 0:03:00]}  dxc4 {[%clk 0:02:58]} 5. e4 {[%clk 0:02:59]}  Nbd7 {[%clk 0:02:50]} 6. Bxc4 {[%clk 0:02:55]}  Bb4+ {[%clk 0:02:46]} 7. Nc3 {[%clk 0:02:54]}  h6 {[%clk 0:02:46]} 8. Bxf6 {[%clk 0:02:54]}  Bxc3+ {[%clk 0:02:45]} 9. bxc3 {[%clk 0:02:53]}  Nxf6 {[%clk 0:02:46]} 10. e5 {[%clk 0:02:43]}  Nd5 {[%clk 0:02:44]} 11. Rc1 {[%clk 0:02:40]}  O-O {[%clk 0:02:39]} 12. O-O {[%clk 0:02:40]}  Bd7 {[%clk 0:02:32]} 13. Re1 {[%clk 0:02:36]}  Bc6 {[%clk 0:02:30]} 14. Qd2 {[%clk 0:02:32]}  Nb6 {[%clk 0:02:28]} 15. Be2 {[%clk 0:02:27]}  Be4 {[%clk 0:02:28]} 16. Qe3 {[%clk 0:02:24]}  Bh7 {[%clk 0:02:27]} 17. Red1 {[%clk 0:02:20]}  Nd5 {[%clk 0:02:26]} 18. Qd2 {[%clk 0:02:20]}  Ne7 {[%clk 0:02:18]} 19. c4 {[%clk 0:02:17]}  c6 {[%clk 0:02:15]} 20. Bd3 {[%clk 0:02:08]}  Bxd3 {[%clk 0:02:15]} 21. Qxd3 {[%clk 0:02:09]}  Ng6 {[%clk 0:02:08]} 22. Qe4 {[%clk 0:02:06]}  Qe7 {[%clk 0:02:08]} 23. h4 {[%clk 0:02:02]}  Rfd8 {[%clk 0:02:06]} 24. h5 {[%clk 0:02:00]}  Nf8 {[%clk 0:02:06]} 25. d5 {[%clk 0:01:53]}  exd5 {[%clk 0:02:06]} 26. cxd5 {[%clk 0:01:53]}  cxd5 {[%clk 0:02:07]} 27. Rxd5 {[%clk 0:01:53]}  Rxd5 {[%clk 0:02:08]} 28. Qxd5 {[%clk 0:01:53]}  Rd8 {[%clk 0:02:08]} 29. Qc5 {[%clk 0:01:38]}  Rd1+ {[%clk 0:01:32]} 30. Kh2 {[%clk 0:01:37]}  Qxc5 {[%clk 0:01:33]} 31. Rxc5 {[%clk 0:01:36]}  Ra1 {[%clk 0:01:34]} 32. Rc8 {[%clk 0:01:27]}  Rxa2 {[%clk 0:01:23]} 33. Kg3 {[%clk 0:01:23]}  Re2 {[%clk 0:01:15]} 34. Rc7 {[%clk 0:01:13]}  Ne6 {[%clk 0:00:43]} 35. Rxb7 {[%clk 0:01:12]}  a6 {[%clk 0:00:43]} 36. Ra7 {[%clk 0:01:04]}  Nc5 {[%clk 0:00:44]} 37. Ra8+ {[%clk 0:00:57]}  Kh7 {[%clk 0:00:44]} 38. Ra7 {[%clk 0:00:57]}  f6 {[%clk 0:00:39]} 39. exf6 {[%clk 0:00:56]}  Ne4+ {[%clk 0:00:38]} 40. Kf4 {[%clk 0:00:56]}  Nxf6 {[%clk 0:00:37]} 41. Rxa6 {[%clk 0:00:45]}  Nxh5+ {[%clk 0:00:37]} 42. Kg4 {[%clk 0:00:42]}  Nf6+ {[%clk 0:00:38]} 43. Kg3 {[%clk 0:00:40]}  Ne4+ {[%clk 0:00:38]} 44. Kf4 {[%clk 0:00:40]}  Nxf2 {[%clk 0:00:38]} 45. g4 {[%clk 0:00:37]}  Re4+ {[%clk 0:00:36]} 46. Kg3 {[%clk 0:00:36]}  Nxg4 {[%clk 0:00:36]} 47. Ra7 {[%clk 0:00:23]}  Nf6 {[%clk 0:00:36]} 48. Nh4 {[%clk 0:00:21]}  Nh5+ {[%clk 0:00:35]} 49. Kh3 {[%clk 0:00:21]}  Nf4+ {[%clk 0:00:35]} 50. Kg3 {[%clk 0:00:21]}  Nh5+ {[%clk 0:00:36]} 51. Kh3 {[%clk 0:00:21]}  Rf4 {[%clk 0:00:25]} 52. Rb7 {[%clk 0:00:20]}  Nf6 {[%clk 0:00:20]} 53. Kg3 {[%clk 0:00:20]}  Nh5+ {[%clk 0:00:20]} 54. Kh3 {[%clk 0:00:20]}  Nf6 {[%clk 0:00:20]} 55. Kg3 {[%clk 0:00:20]}  Rf1 {[%clk 0:00:21]} 56. Kg2 {[%clk 0:00:20]}  Ra1 {[%clk 0:00:18]} 57. Nf5 {[%clk 0:00:19]}  Nh5 {[%clk 0:00:18]} 58. Kh3 {[%clk 0:00:19]}  Ra4 {[%clk 0:00:18]} 59. Rc7 {[%clk 0:00:18]}  Rf4 {[%clk 0:00:18]} 60. Nh4 {[%clk 0:00:18]}  Kg8 {[%clk 0:00:18]} 61. Rc5 {[%clk 0:00:13]}  Nf6 {[%clk 0:00:17]} 62. Rc7 {[%clk 0:00:13]}  Rd4 {[%clk 0:00:16]} 63. Ng6 {[%clk 0:00:12]}  Rd7 {[%clk 0:00:14]} 64. Rc8+ {[%clk 0:00:12]}  Kf7 {[%clk 0:00:13]} 65. Ne5+ {[%clk 0:00:12]}  Ke6 {[%clk 0:00:14]} 66. Nxd7 {[%clk 0:00:13]}  Nxd7 {[%clk 0:00:15]} 67. Rg8 {[%clk 0:00:12]}  Kf7 {[%clk 0:00:15]} 68. Ra8 {[%clk 0:00:12]}  Nf6 {[%clk 0:00:16]} 69. Ra7+ {[%clk 0:00:12]}  Kg6 {[%clk 0:00:17]} 70. Kh4 {[%clk 0:00:12]}  Ne4 {[%clk 0:00:15]} 71. Ra6+ {[%clk 0:00:12]}  Kh7 {[%clk 0:00:16]} 72. Ra7 {[%clk 0:00:12]}  Ng5 {[%clk 0:00:16]} 73. Rb7 {[%clk 0:00:12]}  Kg6 {[%clk 0:00:15]} 74. Rb6+ {[%clk 0:00:12]}  Kh7 {[%clk 0:00:15]} 75. Rb7 {[%clk 0:00:12]}  Ne6 {[%clk 0:00:16]} 76. Ra7 {[%clk 0:00:12]}  Kg6 {[%clk 0:00:15]} 77. Ra6 {[%clk 0:00:12]}  Kf6 {[%clk 0:00:16]} 78. Kh5 {[%clk 0:00:11]}  Kf5 {[%clk 0:00:15]} 79. Ra5+ {[%clk 0:00:11]}  Kf6 {[%clk 0:00:16]} 80. Ra6 {[%clk 0:00:11]}  Kf7 {[%clk 0:00:16]} 81. Ra7+ {[%clk 0:00:11]}  Kg8 {[%clk 0:00:17]} 82. Kh4 {[%clk 0:00:10]}  g6 {[%clk 0:00:15]} 83. Rb7 {[%clk 0:00:09]}  Ng7 {[%clk 0:00:14]} 84. Kg4 {[%clk 0:00:09]}  Kh7 {[%clk 0:00:15]} 85. Kf4 {[%clk 0:00:09]}  g5+ {[%clk 0:00:15]} 86. Kg4 {[%clk 0:00:07]}  Kg6 {[%clk 0:00:15]} 87. Rb6+ {[%clk 0:00:07]}  Kh7 {[%clk 0:00:15]} 88. Rb7 {[%clk 0:00:07]}  Kg8 {[%clk 0:00:15]} 89. Rb8+ {[%clk 0:00:06]}  Kf7 {[%clk 0:00:15]} 90. Rb7+ {[%clk 0:00:07]}  Kf6 {[%clk 0:00:16]} 91. Rb6+ {[%clk 0:00:07]}  Ne6 {[%clk 0:00:16]} 92. Kh5 {[%clk 0:00:07]}  Kf5 {[%clk 0:00:16]} 93. Rb5+ {[%clk 0:00:06]}  Kf4 {[%clk 0:00:16]} 94. Kxh6 {[%clk 0:00:06]}  g4 {[%clk 0:00:16]} 95. Rb4+ {[%clk 0:00:06]}  Kf3 {[%clk 0:00:16]} 96. Rxg4 {[%clk 0:00:06]}  Kxg4 {[%clk 0:00:16]} 1/2-1/2


[Site "https://www.chess.com"]

[Event "Titled Tuesday Blitz July 27 2021"]
[White "Hansen, Eric"]
[Black "Zaichenko, Daria"]
[WhiteFideId "2606771"]
[BlackFideId "4197453"]
[WhiteElo "2568"]
[BlackElo "2039"]
[Result "1-0"]
[Round "04"]
[TimeControl "180+1"]
[Date "2021.07.27"]
[WhiteClock "0:02:17"]
[BlackClock "0:00:50"]

1. e4 {[%clk 0:03:00]}  c5 {[%clk 0:02:59]} 2. Nf3 {[%clk 0:03:00]}  Nc6 {[%clk 0:02:58]} 3. Bb5 {[%clk 0:03:00]}  d6 {[%clk 0:02:57]} 4. c3 {[%clk 0:03:00]}  e5 {[%clk 0:02:56]} 5. d4 {[%clk 0:02:58]}  cxd4 {[%clk 0:02:54]} 6. cxd4 {[%clk 0:02:58]}  Bd7 {[%clk 0:02:43]} 7. Nc3 {[%clk 0:02:55]}  Nf6 {[%clk 0:02:37]} 8. O-O {[%clk 0:02:53]}  Be7 {[%clk 0:02:31]} 9. h3 {[%clk 0:02:51]}  O-O {[%clk 0:02:29]} 10. d5 {[%clk 0:02:49]}  Nb8 {[%clk 0:02:28]} 11. a4 {[%clk 0:02:48]}  a6 {[%clk 0:02:27]} 12. Bd3 {[%clk 0:02:47]}  h6 {[%clk 0:02:24]} 13. Be3 {[%clk 0:02:47]}  Nh7 {[%clk 0:02:16]} 14. Qb3 {[%clk 0:02:46]}  Bc8 {[%clk 0:02:15]} 15. Bb6 {[%clk 0:02:30]}  Qe8 {[%clk 0:02:12]} 16. a5 {[%clk 0:02:26]}  f5 {[%clk 0:02:10]} 17. exf5 {[%clk 0:02:24]}  Bxf5 {[%clk 0:02:09]} 18. Bxf5 {[%clk 0:02:24]}  Rxf5 {[%clk 0:02:09]} 19. Ne4 {[%clk 0:02:25]}  Nd7 {[%clk 0:02:05]} 20. Bc7 {[%clk 0:02:23]}  Qg6 {[%clk 0:01:39]} 21. Bxd6 {[%clk 0:02:23]}  Bxd6 {[%clk 0:01:34]} 22. Nh4 {[%clk 0:02:23]}  Qg5 {[%clk 0:01:11]} 23. Nxf5 {[%clk 0:02:19]}  Qxf5 {[%clk 0:01:10]} 24. Nxd6 {[%clk 0:02:19]}  Qg6 {[%clk 0:01:00]} 25. Qxb7 {[%clk 0:02:17]}  Rd8 {[%clk 0:00:57]} 26. Qc7 {[%clk 0:02:17]}  Qf6 {[%clk 0:00:50]} 27. Nb7 {[%clk 0:02:17]} 1-0


[Site "https://www.chess.com"]

[Event "Titled Tuesday Blitz July 27 2021"]
[White "Jeet, Jain"]
[Black "Solon, Nathan"]
[WhiteFideId "5073022"]
[BlackFideId "2017229"]
[WhiteElo "2085"]
[BlackElo "2638"]
[Result "1-0"]
[Round "04"]
[TimeControl "180+1"]
[Date "2021.07.27"]
[WhiteClock "0:01:15"]
[BlackClock "0:00:02"]

1. e4 {[%clk 0:03:00]}  c5 {[%clk 0:02:59]} 2. Nf3 {[%clk 0:03:00]}  d6 {[%clk 0:03:00]} 3. Bb5+ {[%clk 0:03:00]}  Nd7 {[%clk 0:03:00]} 4. c3 {[%clk 0:03:00]}  Nf6 {[%clk 0:02:58]} 5. Qe2 {[%clk 0:03:00]}  a6 {[%clk 0:02:58]} 6. Ba4 {[%clk 0:03:00]}  b5 {[%clk 0:02:58]} 7. Bc2 {[%clk 0:03:01]}  Bb7 {[%clk 0:02:58]} 8. O-O {[%clk 0:03:00]}  g6 {[%clk 0:02:59]} 9. d4 {[%clk 0:03:00]}  Bg7 {[%clk 0:02:59]} 10. Re1 {[%clk 0:02:55]}  O-O {[%clk 0:02:58]} 11. e5 {[%clk 0:02:55]}  Nd5 {[%clk 0:02:39]} 12. e6 {[%clk 0:02:54]}  fxe6 {[%clk 0:02:36]} 13. Qxe6+ {[%clk 0:02:53]}  Kh8 {[%clk 0:02:32]} 14. Ng5 {[%clk 0:02:53]}  Qe8 {[%clk 0:02:21]} 15. Qh3 {[%clk 0:02:51]}  N7f6 {[%clk 0:02:15]} 16. Ne6 {[%clk 0:02:45]}  Rg8 {[%clk 0:01:49]} 17. Nxg7 {[%clk 0:02:42]}  Rxg7 {[%clk 0:01:46]} 18. Bh6 {[%clk 0:02:41]}  Rf7 {[%clk 0:01:37]} 19. Bg5 {[%clk 0:02:33]}  Kg8 {[%clk 0:01:30]} 20. Nd2 {[%clk 0:02:32]}  cxd4 {[%clk 0:01:29]} 21. cxd4 {[%clk 0:02:31]}  Rc8 {[%clk 0:01:29]} 22. Bb3 {[%clk 0:02:31]}  Qd7 {[%clk 0:00:49]} 23. Qh4 {[%clk 0:02:19]}  Qf5 {[%clk 0:00:38]} 24. Nf3 {[%clk 0:02:15]}  a5 {[%clk 0:00:29]} 25. a4 {[%clk 0:02:14]}  b4 {[%clk 0:00:29]} 26. h3 {[%clk 0:02:11]}  Ba6 {[%clk 0:00:28]} 27. g4 {[%clk 0:02:06]}  Qxf3 {[%clk 0:00:27]} 28. Bd1 {[%clk 0:02:02]}  Qd3 {[%clk 0:00:18]} 29. Be2 {[%clk 0:02:02]}  Qxe2 {[%clk 0:00:19]} 30. Rxe2 {[%clk 0:02:02]}  Bxe2 {[%clk 0:00:20]} 31. Re1 {[%clk 0:02:01]}  Rc2 {[%clk 0:00:20]} 32. b3 {[%clk 0:01:57]}  Ne4 {[%clk 0:00:20]} 33. Bh6 {[%clk 0:01:49]}  Nxf2 {[%clk 0:00:18]} 34. Qg3 {[%clk 0:01:35]}  Rf3 {[%clk 0:00:18]} 35. Qg2 {[%clk 0:01:25]}  Nxh3+ {[%clk 0:00:18]} 36. Kh1 {[%clk 0:01:25]}  Nf2+ {[%clk 0:00:16]} 37. Kg1 {[%clk 0:01:24]}  Nh3+ {[%clk 0:00:16]} 38. Kh1 {[%clk 0:01:25]}  Nf2+ {[%clk 0:00:11]} 39. Kg1 {[%clk 0:01:23]}  Nf6 {[%clk 0:00:12]} 40. Rxe2 {[%clk 0:01:21]}  Nh3+ {[%clk 0:00:03]} 41. Kh1 {[%clk 0:01:19]}  Rxe2 {[%clk 0:00:02]} 42. Qxe2 {[%clk 0:01:15]} 1-0


[Site "https://www.chess.com"]

[Event "Titled Tuesday Blitz July 27 2021"]
[White "Jodorcovsky Werjivker, Paulo"]
[Black "Piesik, Piotr"]
[WhiteFideId "3700305"]
[BlackFideId "1136194"]
[WhiteElo "2142"]
[BlackElo "2354"]
[Result "0-1"]
[Round "04"]
[TimeControl "180+1"]
[Date "2021.07.27"]
[WhiteClock "0:00:08"]
[BlackClock "0:00:42"]

1. e4 {[%clk 0:03:00]}  g6 {[%clk 0:02:59]} 2. d4 {[%clk 0:02:59]}  Bg7 {[%clk 0:02:59]} 3. Nc3 {[%clk 0:03:00]}  c6 {[%clk 0:02:59]} 4. Bg5 {[%clk 0:02:55]}  d5 {[%clk 0:02:58]} 5. exd5 {[%clk 0:02:52]}  cxd5 {[%clk 0:02:58]} 6. Qd2 {[%clk 0:02:51]}  Nc6 {[%clk 0:02:57]} 7. Bb5 {[%clk 0:02:51]}  Nf6 {[%clk 0:02:51]} 8. f3 {[%clk 0:02:39]}  Be6 {[%clk 0:02:40]} 9. Nge2 {[%clk 0:02:35]}  a6 {[%clk 0:02:38]} 10. Bxc6+ {[%clk 0:02:34]}  bxc6 {[%clk 0:02:39]} 11. Bh6 {[%clk 0:02:32]}  O-O {[%clk 0:02:37]} 12. O-O-O {[%clk 0:02:29]}  Rb8 {[%clk 0:02:34]} 13. Bxg7 {[%clk 0:02:28]}  Kxg7 {[%clk 0:02:33]} 14. Nf4 {[%clk 0:02:28]}  Qd6 {[%clk 0:02:28]} 15. Nxe6+ {[%clk 0:02:28]}  Qxe6 {[%clk 0:02:28]} 16. g4 {[%clk 0:02:28]}  Nd7 {[%clk 0:02:27]} 17. h4 {[%clk 0:02:26]}  h6 {[%clk 0:02:27]} 18. Rde1 {[%clk 0:02:19]}  Qd6 {[%clk 0:02:27]} 19. f4 {[%clk 0:02:16]}  Nb6 {[%clk 0:02:21]} 20. b3 {[%clk 0:01:55]}  c5 {[%clk 0:02:16]} 21. dxc5 {[%clk 0:01:53]}  Qxc5 {[%clk 0:02:16]} 22. f5 {[%clk 0:01:45]}  Rbc8 {[%clk 0:02:14]} 23. Nd1 {[%clk 0:01:34]}  Rc6 {[%clk 0:02:05]} 24. fxg6 {[%clk 0:01:27]}  fxg6 {[%clk 0:02:00]} 25. Re2 {[%clk 0:01:22]}  Rfc8 {[%clk 0:01:47]} 26. Nb2 {[%clk 0:01:05]}  e5 {[%clk 0:01:39]} 27. Rf1 {[%clk 0:00:40]}  Qe7 {[%clk 0:01:24]} 28. g5 {[%clk 0:00:39]}  Rxc2+ {[%clk 0:01:19]} 29. Qxc2 {[%clk 0:00:36]}  Rxc2+ {[%clk 0:01:20]} 30. Rxc2 {[%clk 0:00:37]}  hxg5 {[%clk 0:01:19]} 31. hxg5 {[%clk 0:00:37]}  Qxg5+ {[%clk 0:01:19]} 32. Kb1 {[%clk 0:00:37]}  Qe7 {[%clk 0:01:16]} 33. Rcf2 {[%clk 0:00:34]}  e4 {[%clk 0:01:13]} 34. Nd1 {[%clk 0:00:33]}  d4 {[%clk 0:01:12]} 35. Rh1 {[%clk 0:00:29]}  Nd5 {[%clk 0:01:11]} 36. Rfh2 {[%clk 0:00:28]}  Qg5 {[%clk 0:00:57]} 37. Rh7+ {[%clk 0:00:26]}  Kf6 {[%clk 0:00:57]} 38. Rf1+ {[%clk 0:00:20]}  Ke5 {[%clk 0:00:57]} 39. Rh3 {[%clk 0:00:08]}  d3 {[%clk 0:00:51]} 40. Nf2 {[%clk 0:00:07]}  Nc3+ {[%clk 0:00:46]} 41. Kb2 {[%clk 0:00:07]}  Qd2+ {[%clk 0:00:46]} 42. Ka3 {[%clk 0:00:08]}  Qxa2+ {[%clk 0:00:45]} 43. Kb4 {[%clk 0:00:08]}  Nd5+ {[%clk 0:00:45]} 44. Kc4 {[%clk 0:00:08]}  Qc2# {[%clk 0:00:42]} 0-1


[Site "https://www.chess.com"]

[Event "Titled Tuesday Blitz July 27 2021"]
[White "Katz, Alexander"]
[Black "Rustemov, Alexander"]
[WhiteFideId "2039796"]
[BlackFideId "4119002"]
[WhiteElo "2371"]
[BlackElo "2806"]
[Result "1-0"]
[Round "04"]
[TimeControl "180+1"]
[Date "2021.07.27"]
[WhiteClock "0:00:40"]
[BlackClock "0:00:40"]

1. e4 {[%clk 0:03:00]}  e6 {[%clk 0:02:59]} 2. d4 {[%clk 0:03:00]}  d5 {[%clk 0:02:59]} 3. Nd2 {[%clk 0:03:00]}  c5 {[%clk 0:02:59]} 4. exd5 {[%clk 0:03:00]}  Qxd5 {[%clk 0:03:00]} 5. Ngf3 {[%clk 0:03:00]}  cxd4 {[%clk 0:02:56]} 6. Bc4 {[%clk 0:03:00]}  Qd7 {[%clk 0:02:56]} 7. O-O {[%clk 0:03:00]}  Nf6 {[%clk 0:02:56]} 8. Nb3 {[%clk 0:03:00]}  Nc6 {[%clk 0:02:56]} 9. Nbxd4 {[%clk 0:03:00]}  Nxd4 {[%clk 0:02:56]} 10. Nxd4 {[%clk 0:03:01]}  a6 {[%clk 0:02:56]} 11. Re1 {[%clk 0:03:01]}  Bc5 {[%clk 0:02:55]} 12. c3 {[%clk 0:02:41]}  Bxd4 {[%clk 0:02:55]} 13. cxd4 {[%clk 0:02:40]}  b5 {[%clk 0:02:55]} 14. Bb3 {[%clk 0:02:38]}  Bb7 {[%clk 0:02:55]} 15. Qd3 {[%clk 0:02:33]}  O-O {[%clk 0:02:45]} 16. Bg5 {[%clk 0:02:32]}  Nd5 {[%clk 0:02:42]} 17. Bc2 {[%clk 0:02:22]}  g6 {[%clk 0:02:41]} 18. Qh3 {[%clk 0:02:12]}  Rac8 {[%clk 0:02:37]} 19. Be4 {[%clk 0:02:00]}  f6 {[%clk 0:02:35]} 20. Bh6 {[%clk 0:01:55]}  Rfe8 {[%clk 0:02:35]} 21. Rad1 {[%clk 0:01:50]}  Bc6 {[%clk 0:02:11]} 22. Bb1 {[%clk 0:01:45]}  Qf7 {[%clk 0:02:00]} 23. Rd3 {[%clk 0:01:43]}  Bd7 {[%clk 0:01:48]} 24. Qf3 {[%clk 0:01:34]}  Rc4 {[%clk 0:01:45]} 25. a3 {[%clk 0:01:29]}  Rc7 {[%clk 0:01:34]} 26. h4 {[%clk 0:01:25]}  Bc6 {[%clk 0:01:32]} 27. Qg3 {[%clk 0:01:24]}  Ne7 {[%clk 0:01:26]} 28. Qxc7 {[%clk 0:01:21]}  Rc8 {[%clk 0:01:17]} 29. Qf4 {[%clk 0:01:13]}  Bd5 {[%clk 0:01:12]} 30. Rg3 {[%clk 0:01:11]}  Rc4 {[%clk 0:01:06]} 31. Rc1 {[%clk 0:01:10]}  Nc6 {[%clk 0:01:01]} 32. Rxc4 {[%clk 0:01:06]}  bxc4 {[%clk 0:01:01]} 33. Qd6 {[%clk 0:00:55]}  Qe7 {[%clk 0:00:57]} 34. Qxe7 {[%clk 0:00:50]}  Nxe7 {[%clk 0:00:58]} 35. Rc3 {[%clk 0:00:50]}  Nc6 {[%clk 0:00:55]} 36. Ba2 {[%clk 0:00:49]}  Na5 {[%clk 0:00:55]} 37. Bd2 {[%clk 0:00:49]}  Kf7 {[%clk 0:00:54]} 38. Rc1 {[%clk 0:00:48]}  Nc6 {[%clk 0:00:52]} 39. Bxc4 {[%clk 0:00:48]}  Nxd4 {[%clk 0:00:52]} 40. Be3 {[%clk 0:00:42]}  Nb5 {[%clk 0:00:43]} 41. Bxd5 {[%clk 0:00:40]}  exd5 {[%clk 0:00:44]} 42. a4 {[%clk 0:00:40]}  Nd6 {[%clk 0:00:43]} 43. Rc6 {[%clk 0:00:41]}  Nc4 {[%clk 0:00:43]} 44. Rxa6 {[%clk 0:00:39]}  Nxb2 {[%clk 0:00:43]} 45. a5 {[%clk 0:00:40]}  Nc4 {[%clk 0:00:40]} 46. Bd4 {[%clk 0:00:40]} 1-0


[Site "https://www.chess.com"]

[Event "Titled Tuesday Blitz July 27 2021"]
[White "Krivonosov, Oleg"]
[Black "Ozates, Tuna"]
[WhiteFideId "11600349"]
[BlackFideId "6354521"]
[WhiteElo "2469"]
[BlackElo "1872"]
[Result "1/2-1/2"]
[Round "04"]
[TimeControl "180+1"]
[Date "2021.07.27"]
[WhiteClock "0:01:00"]
[BlackClock "0:00:34"]

1. Nf3 {[%clk 0:03:00]}  c5 {[%clk 0:02:51]} 2. c4 {[%clk 0:03:00]}  Nc6 {[%clk 0:02:50]} 3. d4 {[%clk 0:02:59]}  cxd4 {[%clk 0:02:50]} 4. Nxd4 {[%clk 0:03:00]}  e6 {[%clk 0:02:49]} 5. Nc3 {[%clk 0:03:00]}  Nf6 {[%clk 0:02:48]} 6. Bf4 {[%clk 0:02:59]}  Bb4 {[%clk 0:02:47]} 7. Nb5 {[%clk 0:02:58]}  O-O {[%clk 0:02:45]} 8. Bd6 {[%clk 0:02:56]}  Bxd6 {[%clk 0:02:44]} 9. Nxd6 {[%clk 0:02:57]}  Qb6 {[%clk 0:02:40]} 10. Qd2 {[%clk 0:02:55]}  Ne5 {[%clk 0:02:31]} 11. e3 {[%clk 0:02:51]}  Qc6 {[%clk 0:02:28]} 12. Rc1 {[%clk 0:02:44]}  b6 {[%clk 0:02:27]} 13. b3 {[%clk 0:02:36]}  Bb7 {[%clk 0:02:21]} 14. h3 {[%clk 0:02:30]}  Ne8 {[%clk 0:02:15]} 15. Nxb7 {[%clk 0:02:29]}  Qxb7 {[%clk 0:02:11]} 16. Qd4 {[%clk 0:02:28]}  d6 {[%clk 0:02:08]} 17. Qe4 {[%clk 0:02:27]}  Nc6 {[%clk 0:01:54]} 18. Be2 {[%clk 0:02:23]}  Nf6 {[%clk 0:01:54]} 19. Qf3 {[%clk 0:02:23]}  Rac8 {[%clk 0:01:54]} 20. O-O {[%clk 0:02:20]}  Qe7 {[%clk 0:01:52]} 21. Ne4 {[%clk 0:02:17]}  Nxe4 {[%clk 0:01:51]} 22. Qxe4 {[%clk 0:02:18]}  h6 {[%clk 0:01:42]} 23. Rfd1 {[%clk 0:02:17]}  Rfd8 {[%clk 0:01:42]} 24. Bf3 {[%clk 0:02:14]}  Ne5 {[%clk 0:01:40]} 25. Be2 {[%clk 0:02:11]}  Qc7 {[%clk 0:01:34]} 26. f4 {[%clk 0:02:07]}  Nd7 {[%clk 0:01:34]} 27. Bf3 {[%clk 0:02:05]}  Nf6 {[%clk 0:01:34]} 28. Qd4 {[%clk 0:02:04]}  d5 {[%clk 0:01:29]} 29. Qb2 {[%clk 0:01:48]}  dxc4 {[%clk 0:01:24]} 30. Rxc4 {[%clk 0:01:44]}  Rxd1+ {[%clk 0:01:23]} 31. Bxd1 {[%clk 0:01:45]}  Qd7 {[%clk 0:01:23]} 32. Rxc8+ {[%clk 0:01:43]}  Qxc8 {[%clk 0:01:19]} 33. Bf3 {[%clk 0:01:43]}  Qc5 {[%clk 0:01:16]} 34. Qd2 {[%clk 0:01:41]}  g6 {[%clk 0:01:06]} 35. Kf2 {[%clk 0:01:31]}  h5 {[%clk 0:01:04]} 36. Qd4 {[%clk 0:01:26]}  Qxd4 {[%clk 0:00:59]} 37. exd4 {[%clk 0:01:27]}  Kf8 {[%clk 0:01:00]} 38. g4 {[%clk 0:01:25]}  hxg4 {[%clk 0:01:00]} 39. hxg4 {[%clk 0:01:26]}  Ke7 {[%clk 0:01:00]} 40. g5 {[%clk 0:01:25]}  Nd5 {[%clk 0:00:55]} 41. Bxd5 {[%clk 0:01:23]}  exd5 {[%clk 0:00:54]} 42. Kf3 {[%clk 0:01:23]}  Ke6 {[%clk 0:00:51]} 43. Kg4 {[%clk 0:01:22]}  f5+ {[%clk 0:00:49]} 44. Kf3 {[%clk 0:01:00]}  Kd6 {[%clk 0:00:48]} 45. Ke3 {[%clk 0:01:00]}  Kc6 {[%clk 0:00:48]} 46. Kd3 {[%clk 0:01:00]}  Kb5 {[%clk 0:00:49]} 47. a3 {[%clk 0:01:00]}  a5 {[%clk 0:00:47]} 48. Kc3 {[%clk 0:01:00]}  a4 {[%clk 0:00:38]} 49. b4 {[%clk 0:00:59]}  Kc6 {[%clk 0:00:38]} 50. Kd3 {[%clk 0:00:59]}  Kb5 {[%clk 0:00:33]} 51. Kc3 {[%clk 0:00:59]}  Kc6 {[%clk 0:00:33]} 52. Kd3 {[%clk 0:00:59]}  Kb5 {[%clk 0:00:34]} 53. Kc3 {[%clk 0:01:00]} 1/2-1/2


[Site "https://www.chess.com"]

[Event "Titled Tuesday Blitz July 27 2021"]
[White "Lazavik, Denis"]
[Black "Mekhitarian, Krikor Sevag"]
[WhiteFideId "13515110"]
[BlackFideId "2107660"]
[WhiteElo "2436"]
[BlackElo "2598"]
[Result "1-0"]
[Round "04"]
[TimeControl "180+1"]
[Date "2021.07.27"]
[WhiteClock "0:01:35"]
[BlackClock "0:00:25"]

1. d4 {[%clk 0:03:00]}  Nf6 {[%clk 0:02:58]} 2. c4 {[%clk 0:03:01]}  e6 {[%clk 0:02:51]} 3. Nf3 {[%clk 0:03:01]}  b6 {[%clk 0:02:46]} 4. g3 {[%clk 0:02:57]}  Bb7 {[%clk 0:02:45]} 5. Bg2 {[%clk 0:02:57]}  Bb4+ {[%clk 0:02:37]} 6. Bd2 {[%clk 0:02:57]}  Bxd2+ {[%clk 0:02:36]} 7. Qxd2 {[%clk 0:02:57]}  d6 {[%clk 0:02:35]} 8. O-O {[%clk 0:02:54]}  O-O {[%clk 0:02:33]} 9. Qf4 {[%clk 0:02:53]}  Nbd7 {[%clk 0:02:30]} 10. Nc3 {[%clk 0:02:52]}  Re8 {[%clk 0:02:24]} 11. e4 {[%clk 0:02:50]}  e5 {[%clk 0:02:24]} 12. Qe3 {[%clk 0:02:51]}  exd4 {[%clk 0:01:54]} 13. Nxd4 {[%clk 0:02:52]}  Nc5 {[%clk 0:01:54]} 14. f3 {[%clk 0:02:51]}  d5 {[%clk 0:01:53]} 15. cxd5 {[%clk 0:02:42]}  Nxd5 {[%clk 0:01:52]} 16. Nxd5 {[%clk 0:02:42]}  Qxd5 {[%clk 0:01:41]} 17. b4 {[%clk 0:02:17]}  Nd7 {[%clk 0:01:17]} 18. Qc3 {[%clk 0:02:10]}  Qe5 {[%clk 0:01:04]} 19. f4 {[%clk 0:02:09]}  Qe7 {[%clk 0:00:55]} 20. Nf5 {[%clk 0:01:54]}  Qf6 {[%clk 0:00:33]} 21. Qxc7 {[%clk 0:01:41]}  Qc6 {[%clk 0:00:25]} 22. Rac1 {[%clk 0:01:35]} 1-0


[Site "https://www.chess.com"]